fUSD/lending_fUSD_20240117
["ID","MTS","AMOUNT","RATE_DAILY","PERIOD"]
[311859150,1705476654875,-500.0,0.00022464,2]
[311859151,1705476654885,-500.0,0.00022464,2]
[311859152,1705476654895,-500.0,0.00022464,2]
[311859153,1705476654907,-500.0,0.00022464,2]
[311859154,1705476654918,-694.09,0.00022464,2]
[311859155,1705476654929,-673.83,0.00022464,2]
[311859156,1705476654940,-500.0,0.00022464,2]
[311859157,1705476654950,-500.0,0.00022464,2]
[311859158,1705476654961,-500.0,0.00022464,2]
[311859159,1705476654971,-500.0,0.00022464,2]
[311859160,1705476654981,-500.0,0.00022464,2]
[311859161,1705476654991,-500.0,0.00022464,2]
[311859162,1705476655002,-828.88,0.00022464,2]
[311859163,1705476655012,-650.33,0.00022464,2]
[311859164,1705476655022,-500.0,0.00022464,2]
[311859165,1705476655037,-742.88,0.00022464,2]
[311859166,1705476655047,-642.23,0.00022464,2]
[311859167,1705476655057,-500.0,0.00022464,2]
[311859168,1705476655066,-500.0,0.00022464,2]
[311859169,1705476655076,-500.0,0.00022464,2]
[311859170,1705476655086,-500.0,0.00022464,2]
[311859171,1705476655096,-500.0,0.00022464,2]
[311859172,1705476655106,-500.0,0.00022464,2]
[311859173,1705476655115,-500.0,0.00022464,2]
[311859174,1705476655125,-500.0,0.00022464,2]
[311859175,1705476655135,-500.0,0.00022464,2]
[311859176,1705476655145,-500.0,0.00022464,2]
[311859177,1705476655156,-500.0,0.00022464,2]
[311859178,1705476655166,-536.77760315,0.00022464,2]
[311859179,1705476655176,-500.0,0.00022464,2]
[311859180,1705476655185,-500.0,0.00022464,2]
[311859181,1705476655195,-445.44009425,0.00022464,2]
[311859182,1705476655205,-730.8,0.00022464,2]
[311859183,1705476655219,-1027.67,0.00022464,2]
[311859184,1705476655229,-500.0,0.00022464,2]
[311859185,1705476655239,-500.0,0.00022464,2]
[311859186,1705476655249,-500.0,0.00022464,2]
[311859187,1705476655259,-505.09480783,0.00022464,2]
[311859188,1705476655268,-500.0,0.00022464,2]
[311859189,1705476655278,-500.0,0.00022464,2]
[311859190,1705476655288,-500.0,0.00022464,2]
[311859191,1705476655299,-500.0,0.00022464,2]
[311859192,1705476655308,-500.0,0.00022464,2]
[311859193,1705476655318,-500.0,0.00022464,2]
[311859194,1705476655327,-500.0,0.00022464,2]
[311859195,1705476655337,-689.28,0.00022464,2]
[311859196,1705476655349,-500.0,0.00022464,2]
[311859197,1705476655359,-500.0,0.00022464,2]
[311859198,1705476655370,-587.38037387,0.00022464,2]
[311859199,1705476655380,-500.0,0.00022464,2]
[311859200,1705476655393,-500.0,0.00022464,2]
[311859201,1705476655403,-500.0,0.00022464,2]
[311859202,1705476655414,-500.0,0.00022464,2]
[311859203,1705476655425,-614.53,0.00022464,2]
[311859204,1705476655436,-500.0,0.00022464,2]
[311859205,1705476655447,-500.0,0.00022464,2]
[311859206,1705476655458,-500.0,0.00022464,2]
[311859207,1705476655468,-500.0,0.00022464,2]
[311859208,1705476655477,-500.0,0.00022464,2]
[311859209,1705476655487,-500.0,0.00022464,2]
[311859210,1705476655497,-500.0,0.00022464,2]
[311859211,1705476655507,-954.37,0.00022464,2]
[311859212,1705476655517,-500.0,0.00022464,2]
[311859213,1705476655527,-506.21998775,0.00022464,2]
[311859214,1705476655537,-548.18038603,0.00022464,2]
[311859215,1705476655547,-500.0,0.00022464,2]
[311859216,1705476655557,-505.34792712,0.00022464,2]
[311859217,1705476655567,-273.45070122,0.00022464,2]
[311859218,1705476655578,-822.41,0.00022464,2]
[311859219,1705476655588,-500.0,0.00022464,2]
[311859220,1705476655598,-500.0,0.00022464,2]
[311859221,1705476655608,-500.0,0.00022464,2]
[311859222,1705476655619,-580.2112389,0.00022464,2]
[311859223,1705476655632,-500.0,0.00022464,2]
[311859224,1705476655643,-500.0,0.00022464,2]
[311859225,1705476655654,-500.0,0.00022464,2]
[311859226,1705476655665,-4651.03,0.00022464,2]
[311859227,1705476655676,-500.0,0.00022464,2]
[311859228,1705476655687,-500.0,0.00022464,2]
[311859229,1705476655698,-1552.7,0.00022464,2]
[311859230,1705476655710,-500.0,0.00022464,2]
[311859231,1705476655720,-500.0,0.00022464,2]
[311859232,1705476655731,-500.0,0.00022464,2]
[311859233,1705476655743,-500.0,0.00022464,2]
[311859234,1705476655755,-500.0,0.00022464,2]
[311859235,1705476655765,-829.05,0.00022464,2]
[311859236,1705476655775,-502.96753299,0.00022464,2]
[311859237,1705476655785,-500.0,0.00022464,2]
[311859238,1705476655796,-811.11,0.00022464,2]
[311859239,1705476655806,-500.0,0.00022464,2]
[311859240,1705476655816,-500.0,0.00022464,2]
[311859241,1705476655827,-1128.82,0.00022464,2]
[311859242,1705476655838,-500.0,0.00022464,2]
[311859243,1705476655847,-3139.34,0.00022464,2]
[311859244,1705476655857,-500.0,0.00022464,2]
[311859245,1705476655868,-3499.89,0.00022464,2]
[311859246,1705476655877,-596.6491995,0.00022464,2]
[311859247,1705476655888,-500.0,0.00022464,2]
[311859248,1705476655899,-500.0,0.00022464,2]
[311859249,1705476655909,-500.0,0.00022464,2]
[311859250,1705476655919,-500.0,0.00022464,2]
[311859251,1705476655930,-500.0,0.00022464,2]
[311859252,1705476655943,-500.0,0.00022464,2]
[311859253,1705476655954,-500.0,0.00022464,2]
[311859254,1705476655966,-599.65,0.00022464,2]
[311859255,1705476655977,-500.0,0.00022464,2]
[311859256,1705476655988,-505.11,0.00022464,2]
[311859257,1705476655999,-12052.06,0.00022464,2]
[311859258,1705476656010,-500.0,0.00022464,2]
[311859259,1705476656020,-18014.44,0.00022464,2]
[311859260,1705476656031,-500.0,0.00022464,2]
[311859261,1705476656041,-500.0,0.00022464,2]
[311859262,1705476656052,-500.0,0.00022464,2]
[311859263,1705476656063,-500.0,0.00022464,2]
[311859264,1705476656073,-778.19,0.00022464,2]
[311859265,1705476656083,-500.0,0.00022464,2]
[311859266,1705476656095,-500.0,0.00022464,2]
[311859267,1705476656106,-500.0,0.00022464,2]
[311859268,1705476656116,-500.0,0.00022464,2]
[311859269,1705476656127,-2864.71,0.00022464,2]
[311859270,1705476656137,-1076.87,0.00022464,2]
[311859271,1705476656147,-500.0,0.00022464,2]
[311859272,1705476656157,-500.0,0.00022464,2]
[311859273,1705476656167,-500.0,0.00022464,2]
[311859274,1705476656176,-819.56,0.00022464,2]
[311859275,1705476656186,-500.0,0.00022464,2]
[311859276,1705476656196,-500.0,0.00022464,2]
[311859277,1705476656205,-3790.64,0.00022464,2]
[311859278,1705476656216,-945.27,0.00022464,2]
[311859279,1705476656226,-7628.74,0.00022464,2]
[311859280,1705476656236,-1034.03,0.00022464,2]
[311859281,1705476656246,-500.0,0.00022464,2]
[311859282,1705476656256,-504.49309989,0.00022464,2]
[311859283,1705476656266,-5122.21,0.00022464,2]
[311859284,1705476656277,-2624.09,0.00022464,2]
[311859285,1705476656287,-500.0,0.00022464,2]
[311859286,1705476656297,-500.0,0.00022464,2]
[311859287,1705476656308,-2308.66,0.00022464,2]
[311859288,1705476656318,-2333.84,0.00022464,2]
[311859289,1705476656328,-941.51,0.00022464,2]
[311859290,1705476656339,-556.7,0.00022464,2]
[311859291,1705476656349,-500.0,0.00022464,2]
[311859292,1705476656359,-1350.94,0.00022464,2]
[311859293,1705476656370,-500.0,0.00022464,2]
[311859294,1705476656383,-500.0,0.00022464,2]
[311859295,1705476656398,-524.75,0.00022464,2]
[311859296,1705476656409,-5806.04,0.00022464,2]
[311859297,1705476656420,-504.70459604,0.00022464,2]
[311859298,1705476656432,-569.61,0.00022464,2]
[311859299,1705476656443,-500.0,0.00022464,2]
[311859300,1705476656454,-843.26,0.00022464,2]
[311859301,1705476656465,-504.86245472,0.00022464,2]
[311859302,1705476656477,-504.55094411,0.00022464,2]
[311859303,1705476656488,-500.0,0.00022464,2]
[311859304,1705476656499,-4815.06,0.00022464,2]
[311859305,1705476656511,-521.67,0.00022464,2]
[311859306,1705476656522,-500.0,0.00022464,2]
[311859307,1705476656534,-500.0,0.00022464,2]
[311859308,1705476656545,-3247.29,0.00022464,2]
[311859309,1705476656556,-500.0,0.00022464,2]
[311859310,1705476656568,-500.0,0.00022464,2]
[311859311,1705476656579,-760.98,0.00022464,2]
[311859312,1705476656589,-9480.4,0.00022464,2]
[311859313,1705476656600,-684.79,0.00022464,2]
[311859314,1705476656609,-500.0,0.00022464,2]
[311859315,1705476656621,-4527.36,0.00022464,5]
[311859316,1705476656632,-500.0,0.00022464,2]
[311859317,1705476656642,-500.0,0.00022464,2]
[311859318,1705476656654,-500.0,0.00022464,2]
[311859319,1705476656664,-500.0,0.00022464,2]
[311859320,1705476656676,-500.0,0.00022464,2]
[311859321,1705476656688,-500.0,0.00022464,2]
[311859322,1705476656699,-151.7,0.00022464,2]
[311859323,1705476656710,-500.0,0.00022464,2]
[311859324,1705476656721,-304.85263893,0.00022464,2]
[311859325,1705476656733,-500.0,0.00022464,2]
[311859326,1705476656745,-500.0,0.00022464,2]
[311859327,1705476656757,-500.0,0.00022464,2]
[311859328,1705476656769,-5872.34,0.00022464,2]
[311859329,1705476656779,-2431.68,0.00022464,2]
[311859330,1705476656790,-500.0,0.00022464,2]
[311859331,1705476656803,-500.0,0.00022464,2]
[311859332,1705476656814,-505.8248207,0.00022464,2]
[311859333,1705476656825,-739.91,0.00022464,2]
[311859334,1705476656837,-500.0,0.00022464,2]
[311859335,1705476656848,-505.17709678,0.00022464,2]
[311859336,1705476656859,-503.26180764,0.00022464,2]
[311859337,1705476656873,-500.0,0.00022464,2]
[311859338,1705476656884,-555.72,0.00022464,2]
[311859339,1705476656895,-742.68,0.00022464,2]
[311859340,1705476656905,-300.0,0.00022464,2]
[311859341,1705476656916,-300.0,0.00022464,2]
[311859342,1705476656927,-500.0,0.00022464,2]
[311859343,1705476656937,-508.18385436,0.00022464,2]
[311859344,1705476656948,-500.0,0.00022464,2]
[311859345,1705476656959,-500.0,0.00022464,2]
[311859346,1705476656969,-506.94641488,0.00022464,2]
[311859347,1705476656980,-500.0,0.00022464,2]
[311859348,1705476656991,-500.0,0.00022464,2]
[311859349,1705476657002,-500.0,0.00022464,2]
[311859350,1705476657012,-672.14,0.00022464,2]
[311859351,1705476657023,-500.0,0.00022464,2]
[311859352,1705476657033,-500.0,0.00022464,2]
[311859353,1705476657043,-532.32637126,0.00022464,2]
[311859354,1705476657054,-500.0,0.00022464,2]
[311859355,1705476657064,-370.29,0.00022464,2]
[311859356,1705476657074,-2774.18,0.00022464,2]
[311859357,1705476657084,-1581.82,0.00022464,2]
[311859358,1705476657094,-252.601379,0.00022464,7]
[311859359,1705476657104,-151.0,0.00022464,7]
[311859360,1705476657114,-244.196292,0.00022464,7]
[311859361,1705476657124,-1434.82,0.00022465,2]
[311859362,1705476657134,-1611.84,0.00022465,2]
[311859363,1705476657145,-1366.67,0.00022465,2]
[311859364,1705476657155,-653.08,0.00022465,2]
[311859365,1705476657166,-632.88,0.00022465,2]
[311859366,1705476657430,-619.51,0.00022465,2]
[311859367,1705476657440,-500.0,0.00022465,2]
[311859368,1705476657449,-573.44,0.00022465,2]
[311859369,1705476657460,-1179.97,0.00022465,2]
[311859370,1705476657474,-500.0,0.00022465,2]
[311859371,1705476657483,-500.0,0.00022465,2]
[311859372,1705476657493,-506.94,0.00022465,2]
[311859373,1705476657503,-500.0,0.00022465,2]
[311859374,1705476657513,-544.36,0.00022465,2]
[311859375,1705476657522,-983.54,0.00022465,2]
[311859376,1705476657532,-1119.96,0.00022465,2]
[311859377,1705476657544,-1120.89,0.00022465,2]
[311859378,1705476657556,-833.89,0.00022465,2]
[311859379,1705476657567,-1194.46,0.00022465,2]
[311859380,1705476657577,-1392.34,0.00022465,2]
[311859381,1705476657588,-847.87,0.00022465,2]
[311859382,1705476657598,-1529.23,0.00022465,2]
[311859383,1705476657608,-500.0,0.00022465,2]
[311859384,1705476657620,-1493.13,0.00022465,2]
[311859385,1705476657630,-1181.68,0.00022465,2]
[311859386,1705476657639,-1368.82,0.00022465,2]
[311859387,1705476657648,-1036.23,0.00022465,2]
[311859388,1705476657658,-1584.15,0.00022465,2]
[311859389,1705476657668,-972.9,0.00022465,2]
[311859390,1705476657679,-554.38,0.00022465,2]
[311859391,1705476657691,-500.0,0.00022465,2]
[311859392,1705476657700,-1666.38,0.00022465,2]
[311859393,1705476657710,-1024.95,0.00022465,2]
[311859394,1705476657719,-830.41,0.00022465,2]
[311859395,1705476657729,-602.62,0.00022465,2]
[311859396,1705476657738,-500.0,0.00022465,2]
[311859397,1705476657748,-1117.15,0.00022465,2]
[311859398,1705476657757,-530.03,0.00022465,2]
[311859399,1705476657767,-1307.76,0.00022465,2]
[311859400,1705476657777,-1289.65,0.00022465,2]
[311859401,1705476657786,-500.0,0.00022465,2]
[311859402,1705476657796,-500.0,0.00022465,2]
[311859403,1705476657806,-1046.46,0.00022465,2]
[311859404,1705476657816,-1248.85,0.00022465,2]
[311859405,1705476657825,-1637.93,0.00022465,2]
[311859406,1705476657835,-1066.89,0.00022465,2]
[311859407,1705476657844,-1459.88,0.00022465,2]
[311859408,1705476657854,-500.0,0.00022465,2]
[311859409,1705476657864,-753.58,0.00022465,2]
[311859410,1705476657874,-1256.18,0.00022465,2]
[311859411,1705476657883,-500.0,0.00022465,2]
[311859412,1705476657893,-598.95,0.00022465,2]
[311859413,1705476657902,-1345.89,0.00022465,2]
[311859414,1705476657911,-561.88,0.00022465,2]
[311859415,1705476657920,-616.63,0.00022465,2]
[311859416,1705476657930,-500.0,0.00022465,2]
[311859417,1705476657939,-1089.66,0.00022465,2]
[311859418,1705476657949,-500.0,0.00022465,2]
[311859419,1705476657959,-500.0,0.00022465,2]
[311859420,1705476657968,-1259.68,0.00022465,7]
[311859421,1705476657978,-924.37,0.00022465,2]
[311859422,1705476657989,-1723.56,0.00022465,2]
[311859423,1705476658000,-317.50692969,0.00022465,2]
[311859424,1705476658011,-629.54,0.00022465,2]
[311859425,1705476658021,-500.0,0.00022465,2]
[311859426,1705476658031,-1338.16,0.00022465,2]
[311859427,1705476658041,-1212.93,0.00022465,2]
[311859428,1705476658051,-356.1760543,0.00022465,2]
[311859429,1705476658062,-813.57,0.00022465,2]
[311859430,1705476658072,-1386.78,0.00022465,2]
[311859431,1705476658082,-1840.63,0.00022465,2]
[311859432,1705476658092,-500.0,0.00022465,2]
[311859433,1705476658102,-793.74,0.00022465,2]
[311859434,1705476658112,-1325.41,0.00022465,2]
[311859435,1705476658123,-500.0,0.00022465,2]
[311859436,1705476658133,-1108.93,0.00022465,2]
[311859437,1705476658143,-1624.2,0.00022465,2]
[311859438,1705476658153,-4556.22,0.00022465,2]
[311859439,1705476658164,-500.0,0.00022465,2]
[311859440,1705476658173,-500.0,0.00022465,2]
[311859441,1705476658183,-500.0,0.00022465,2]
[311859442,1705476658193,-1833.09,0.00022465,2]
[311859443,1705476658204,-2110.2,0.00022465,2]
[311859444,1705476658215,-1719.95,0.00022465,2]
[311859445,1705476658224,-1348.57,0.00022465,2]
[311859446,1705476658235,-1358.36,0.00022465,2]
[311859447,1705476658245,-500.0,0.00022465,2]
[311859448,1705476658255,-500.0,0.00022465,2]
[311859449,1705476658265,-1356.42,0.00022465,2]
[311859450,1705476658275,-500.0,0.00022465,2]
[311859451,1705476658285,-3068.84,0.00022465,2]
[311859452,1705476658295,-1335.4,0.00022465,2]
[311859453,1705476658304,-500.0,0.00022465,2]
[311859454,1705476658315,-1349.22,0.00022465,2]
[311859455,1705476658326,-500.0,0.00022465,2]
[311859456,1705476658336,-1910.78,0.00022465,2]
[311859457,1705476658346,-762.08,0.00022465,2]
[311859458,1705476658356,-910.9,0.00022465,2]
[311859459,1705476658366,-1630.08,0.00022465,2]
[311859460,1705476658377,-500.0,0.00022465,2]
[311859461,1705476658388,-1795.97,0.00022465,2]
[311859462,1705476658400,-500.0,0.00022465,2]
[311859463,1705476658411,-3758.51,0.00022465,2]
[311859464,1705476658422,-1990.88,0.00022465,2]
[311859465,1705476658433,-289.11740338,0.00022465,2]
[311859466,1705476658444,-1293.57,0.00022465,2]
[311859467,1705476658454,-1347.86,0.00022465,2]
[311859468,1705476658465,-4466.86,0.00022465,2]
[311859469,1705476658477,-2806.33,0.00022465,2]
[311859470,1705476658488,-500.0,0.00022465,2]
[311859471,1705476658498,-4702.16,0.00022465,5]
[311859472,1705476658509,-975.21,0.00022465,2]
[311859473,1705476658520,-7857.97,0.00022465,2]
[311859474,1705476658531,-661.36,0.00022465,2]
[311859475,1705476658542,-500.0,0.00022465,2]
[311859476,1705476658553,-3379.77,0.00022465,2]
[311859477,1705476658564,-745.19,0.00022465,2]
[311859478,1705476658574,-6444.76,0.00022465,2]
[311859479,1705476658584,-1124.19,0.00022465,2]
[311859480,1705476658594,-3704.26,0.00022465,2]
[311859481,1705476658604,-906.36,0.00022465,2]
[311859482,1705476658614,-16162.54,0.00022465,2]
[311859483,1705476658625,-12434.26,0.00022465,2]
[311859484,1705476658636,-9482.71,0.00022465,2]
[311859485,1705476658646,-11109.93,0.00022465,2]
[311859486,1705476658657,-3256.16,0.00022465,2]
[311859487,1705476658668,-745.97,0.00022465,2]
[311859488,1705476658679,-1640.28,0.00022465,2]
[311859489,1705476658689,-3399.11,0.00022465,2]
[311859490,1705476658699,-20221.89,0.00022465,2]
[311859491,1705476658709,-454.52,0.00022465,2]
[311859492,1705476658720,-6354.09,0.00022465,2]
[311859493,1705476658730,-2538.4,0.00022465,2]
[311859494,1705476658740,-500.0,0.00022465,2]
[311859495,1705476658750,-500.0,0.00022465,2]
[311859496,1705476658760,-500.0,0.00022465,2]
[311859497,1705476658771,-1837.55,0.00022465,2]
[311859498,1705476658780,-500.0,0.00022465,2]
[311859499,1705476658789,-2659.91,0.00022465,2]
[311859500,1705476658799,-1254.9,0.00022465,2]
[311859501,1705476658808,-768.69,0.00022465,2]
[311859502,1705476658817,-4127.52,0.00022465,2]
[311859503,1705476658826,-1027.34,0.00022465,2]
[311859504,1705476658835,-804.83,0.00022465,2]
[311859505,1705476658845,-500.0,0.00022465,2]
[311859506,1705476658854,-471.86354161,0.00022465,2]
[311859507,1705476658863,-6211.9,0.00022465,2]
[311859508,1705476658873,-1135.57,0.00022465,2]
[311859509,1705476658883,-1394.59,0.00022465,2]
[311859510,1705476658893,-2527.38,0.00022465,2]
[311859511,1705476658902,-11978.73,0.00022465,2]
[311859512,1705476658911,-1232.33,0.00022465,2]
[311859513,1705476658921,-500.0,0.00022465,2]
[311859514,1705476658930,-1194.86,0.00022465,2]
[311859515,1705476658939,-1197.28,0.00022465,2]
[311859516,1705476658949,-794.93,0.00022465,2]
[311859517,1705476658960,-1023.46,0.00022465,2]
[311859518,1705476658969,-1514.74,0.00022465,2]
[311859519,1705476658978,-1714.78,0.00022465,2]
[311859520,1705476658988,-12347.72,0.00022465,2]
[311859521,1705476658997,-689.66,0.00022465,2]
[311859522,1705476659007,-5216.21,0.00022465,2]
[311859523,1705476659017,-1686.52,0.00022465,2]
[311859524,1705476659026,-2845.05,0.00022465,2]
[311859525,1705476659036,-2569.42,0.00022465,2]
[311859526,1705476659045,-873.47,0.00022465,2]
[311859527,1705476659055,-3061.14,0.00022465,2]
[311859528,1705476659064,-21768.2,0.00022465,2]
[311859529,1705476659074,-1882.19,0.00022465,2]
[311859530,1705476659083,-3382.23,0.00022465,2]
[311859531,1705476659092,-544.36,0.00022465,2]
[311859532,1705476659102,-1892.99,0.00022465,2]
[311859533,1705476659112,-1718.95,0.00022465,2]
[311859534,1705476659122,-2729.13,0.00022465,2]
[311859535,1705476659131,-1110.88,0.00022465,2]
[311859536,1705476659141,-1472.6,0.00022465,2]
[311859537,1705476659151,-1521.32,0.00022465,2]
[311859538,1705476659160,-7299.5,0.00022465,2]
[311859539,1705476659169,-6042.66,0.00022465,2]
[311859540,1705476659179,-2221.72,0.00022465,2]
[311859541,1705476659188,-500.0,0.00022465,2]
[311859542,1705476659198,-2832.83,0.00022465,2]
[311859543,1705476659207,-1150.25,0.00022465,2]
[311859544,1705476659216,-1558.01,0.00022465,2]
[311859545,1705476659226,-1098.97,0.00022465,2]
[311859546,1705476659235,-1166.21,0.00022465,2]
[311859547,1705476659244,-500.0,0.00022465,2]
[311859548,1705476659253,-500.0,0.00022465,2]
[311859549,1705476659262,-1069.45,0.00022465,2]
[311859550,1705476659272,-2355.39,0.00022465,2]
[311859551,1705476659281,-500.0,0.00022465,2]
[311859552,1705476659290,-3591.8,0.00022465,2]
[311859553,1705476659299,-1684.66,0.00022465,2]
[311859554,1705476659309,-2434.16,0.00022465,2]
[311859555,1705476659318,-500.0,0.00022465,2]
[311859556,1705476659327,-2606.94,0.00022465,2]
[311859557,1705476659336,-2406.41,0.00022465,2]
[311859558,1705476659346,-500.0,0.00022465,2]
[311859559,1705476659356,-1852.97,0.00022465,2]
[311859560,1705476659365,-1143.46,0.00022465,2]
[311859561,1705476659375,-500.0,0.00022465,2]
[311859562,1705476659385,-3034.52,0.00022465,2]
[311859563,1705476659397,-2106.34,0.00022465,2]
[311859564,1705476659406,-500.0,0.00022465,2]
[311859565,1705476659415,-6039.3,0.00022465,2]
[311859566,1705476659424,-500.0,0.00022465,2]
[311859567,1705476659434,-2689.31,0.00022465,2]
[311859568,1705476659443,-2935.07,0.00022465,2]
[311859569,1705476659452,-1479.69,0.00022465,2]
[311859570,1705476659463,-1497.87,0.00022465,2]
[311859571,1705476659472,-4181.77,0.00022465,2]
[311859572,1705476659481,-627.99,0.00022465,2]
[311859573,1705476659491,-4882.39,0.00022465,2]
[311859574,1705476659500,-41398.88,0.00022465,2]
[311859575,1705476659510,-1156.16,0.00022465,2]
[311859576,1705476659519,-2836.0,0.00022465,2]
[311859577,1705476659529,-3534.13,0.00022465,2]
[311859578,1705476659538,-1508.99,0.00022465,2]
[311859579,1705476659547,-500.0,0.00022465,2]
[311859580,1705476659559,-1739.73,0.00022465,2]
[311859581,1705476659569,-1188.49,0.00022465,2]
[311859582,1705476659580,-500.0,0.00022465,2]
[311859583,1705476659593,-3412.97,0.00022465,2]
[311859584,1705476659602,-500.0,0.00022465,2]
[311859585,1705476659612,-176.94,0.00022465,2]
[311859586,1705476659629,-31583.95,0.00022465,2]
[311859587,1705476659639,-2106.23,0.00022465,2]
[311859588,1705476659650,-500.0,0.00022465,2]
[311859589,1705476659662,-3068.01,0.00022465,2]
[311859590,1705476659672,-2342.46,0.00022465,2]
[311859591,1705476659685,-2931.11,0.00022465,2]
[311859592,1705476659694,-314.16129008,0.00022465,2]
[311859593,1705476659705,-1279.05,0.00022465,2]
[311859594,1705476659717,-1974.83,0.00022465,2]
[311859595,1705476659727,-500.0,0.00022465,2]
[311859596,1705476659737,-500.0,0.00022465,2]
[311859597,1705476659747,-905.62,0.00022465,2]
[311859598,1705476659757,-673.74,0.00022465,2]
[311859599,1705476659768,-924.31,0.00022465,2]
[311859600,1705476659778,-723.73,0.00022465,2]
[311859601,1705476659893,-7135.45,0.00022465,2]
[311859602,1705476659904,-3841.98,0.00022465,2]
[311859603,1705476659914,-1202.06,0.00022465,2]
[311859604,1705476659924,-500.0,0.00022465,2]
[311859605,1705476659934,-1235.21,0.00022465,2]
[311859606,1705476659943,-1240.2,0.00022465,2]
[311859607,1705476659952,-2033.72,0.00022465,2]
[311859608,1705476659961,-2471.03,0.00022465,2]
[311859609,1705476659971,-2621.03,0.00022465,2]
[311859610,1705476659980,-8444.95,0.00022465,2]
[311859611,1705476659989,-2575.29,0.00022465,2]
[311859612,1705476659998,-5865.12,0.00022465,2]
[311859613,1705476660007,-1735.37,0.00022465,2]
[311859614,1705476660017,-1561.45,0.00022465,2]
[311859615,1705476660026,-288.13,0.00022465,2]
[311859616,1705476660036,-2736.94,0.00022465,2]
[311859617,1705476660046,-2739.39,0.00022465,2]
[311859618,1705476660055,-2612.65,0.00022465,2]
[311859619,1705476660066,-774.71,0.00022465,2]
[311859620,1705476660075,-500.0,0.00022465,2]
[311859621,1705476660085,-540.68,0.00022465,2]
[311859622,1705476660094,-586.29,0.00022465,2]
[311859623,1705476660104,-3538.98,0.00022465,2]
[311859624,1705476660114,-1291.61,0.00022465,2]
[311859625,1705476660125,-500.0,0.00022465,2]
[311859626,1705476660134,-4012.75,0.00022465,2]
[311859627,1705476660144,-536.83,0.00022465,2]
[311859628,1705476660154,-709.89,0.00022465,2]
[311859629,1705476660165,-1954.09,0.00022465,2]
[311859630,1705476660175,-1524.83,0.00022465,2]
[311859631,1705476660184,-1263.43,0.00022465,2]
[311859632,1705476660194,-731.06,0.00022465,2]
[311859633,1705476660205,-3607.07,0.00022465,2]
[311859634,1705476660217,-500.0,0.00022465,2]
[311859635,1705476660228,-839.52,0.00022465,2]
[311859636,1705476660239,-1904.27,0.00022465,2]
[311859637,1705476660249,-500.0,0.00022465,2]
[311859638,1705476660258,-2144.67,0.00022465,2]
[311859639,1705476660268,-1957.1,0.00022465,2]
[311859640,1705476660278,-898.05,0.00022465,2]
[311859641,1705476660288,-1970.8,0.00022465,2]
[311859642,1705476660299,-10943.33,0.00022465,2]
[311859643,1705476660309,-500.0,0.00022465,2]
[311859644,1705476660318,-500.0,0.00022465,2]
[311859645,1705476660328,-2408.8698179,0.00022557,2]
[311859646,1705476660338,-150.0,0.0002263,2]
[311859647,1705476660348,-150.0,0.00022636,2]
[311859648,1705476660357,-150.0,0.00022643,2]
[311859649,1705476660367,-150.0,0.00022668,2]